bitfinex-derivatives/quotes_ETHF0:USTF0_20250417
["timestamp","ask_amount","ask_price","bid_price","bid_amount"]
[1744884775019,4.273,1591.5,1591.4,2.65578445]
[1744884775327,0.00940763,1591.8,1591.7,1.25687]
[1744884775528,3.2078,1592.0,1591.9,1.25671]
[1744884776030,3.2078,1592.0,1591.9,2.64598682]
[1744884776530,3.2078,1592.2,1591.9,7.64598682]
[1744884776721,0.00940763,1592.1,1592.0,2.94863]
[1744884777230,1.25618,1592.6,1592.1,3.14134]
[1744884777415,4.46398,1592.6,1592.5,1.25623]
[1744884777615,1.25623,1592.5,1592.4,1.25625]
[1744884777821,1.25636,1592.4,1592.0,8.0413]
[1744884778130,4.46416,1592.4,1592.2,1.25641]
[1744884778340,0.00940763,1592.4,1592.3,1.25639]
[1744884778523,1.26571763,1592.4,1592.3,1.25639]
[1744884778815,1.26571763,1592.4,1592.2,1.25642]
[1744884779133,0.00940763,1592.4,1592.3,1.25639]
[1744884779431,1.26571763,1592.4,1592.3,1.25639]
[1744884779618,4.47351763,1592.4,1592.0,8.04134]
[1744884779814,3.21720763,1592.4,1592.3,1.25639]
[1744884780024,3.21720763,1592.4,1592.1,1.25652]
[1744884780221,3.2078,1592.2,1592.0,1.692]
[1744884780421,1.25655,1592.1,1592.0,2.94861]
[1744884780640,1.25655,1592.1,1592.0,1.692]
[1744884781022,7.4828,1592.2,1592.0,2.94855]
[1744884781425,1.25655,1592.1,1592.0,1.692]
[1744884781626,1.25655,1592.1,1592.0,2.94863]
[1744884782227,7.4828,1592.2,1592.1,1.25655]
[1744884782433,1.25655,1592.1,1592.0,0.8649]
[1744884782631,1.25671,1591.9,1591.8,0.00940763]
[1744884782826,4.46451,1591.9,1591.8,0.00940763]
[1744884783034,8.73951,1591.9,1591.8,0.00940763]
[1744884785530,7.4828,1591.9,1591.8,1.26619763]
[1744884785925,3.14126,1592.2,1591.8,2.11469763]
[1744884785926,4.276,1592.1,1591.8,2.11469763]
[1744884786127,4.276,1592.1,1592.0,1.25663]
[1744884786333,1.25655,1592.1,1592.0,1.25663]
[1744884786533,4.46432,1592.2,1592.1,1.25655]
[1744884787037,4.276,1592.3,1592.2,1.25647]
[1744884787227,1.26577763,1592.4,1592.2,1.25647]
[1744884787228,0.00940763,1592.4,1592.3,1.25639]
[1744884787431,0.00940763,1592.4,1592.3,2.90859]
[1744884787637,0.00940763,1592.4,1592.3,7.90859]
[1744884789641,0.00940763,1592.4,1592.3,2.90859]
[1744884789933,1.26571763,1592.4,1592.3,2.90859]
[1744884790134,1.26571763,1592.4,1592.3,1.6522]
[1744884790432,4.47351763,1592.4,1592.3,0.796]
[1744884791439,4.47351763,1592.4,1592.3,2.4213]
[1744884792335,1.26571763,1592.4,1592.3,3.67769]
[1744884792525,1.26571763,1592.4,1592.3,2.4213]
[1744884792930,1.26571763,1592.4,1592.3,3.67769]
[1744884793334,0.00940763,1592.4,1592.3,3.67769]
[1744884793833,1.26571763,1592.4,1592.3,3.67769]
[1744884794338,0.00940763,1592.4,1592.3,3.67769]
[1744884795939,0.00940763,1592.4,1592.3,8.67769]
[1744884797632,8.73885,1592.8,1592.7,1.25608]
[1744884797827,1.25617,1592.7,1592.6,1.25612]
[1744884798427,1.25617,1592.7,1592.6,2.91402]
[1744884798939,1.25617,1592.7,1592.6,1.6579]
[1744884799338,6.28108,1592.6,1592.3,0.796]
[1744884799537,1.25647,1592.2,1592.1,0.8235]
[1744884800032,4.46427,1592.2,1592.1,1.25655]
[1744884800238,1.25655,1592.1,1592.0,2.07126]
[1744884800436,1.25655,1592.1,1592.0,0.8147]
[1744884800642,1.25671,1591.9,1591.8,2.08964763]
[1744884800833,1.25671,1591.9,1591.8,0.83290763]
[1744884801028,5.53171,1591.9,1591.8,0.00940763]
[1744884801241,8.73951,1591.9,1591.8,0.00940763]
[1744884801440,5.53171,1591.9,1591.8,0.00940763]
[1744884801646,3.14207,1591.8,1591.5,1.25699]
[1744884801840,1.25692,1591.7,1591.4,6.35054]
[1744884802144,1.25689,1591.7,1591.6,1.25689]
[1744884802642,7.4828,1591.9,1591.5,3.14252]
[1744884802842,1.26620763,1591.8,1591.7,1.2568]
[1744884803043,0.00940763,1591.8,1591.7,1.2568]
[1744884803644,1.26619763,1591.8,1591.7,1.2568]
[1744884804143,0.00940763,1591.8,1591.7,1.2568]
[1744884804345,0.00940763,1591.8,1591.7,6.2568]
[1744884805441,1.25652,1592.2,1592.1,1.25652]
[1744884805945,1.25658,1592.1,1592.0,1.25658]
[1744884806446,1.25652,1592.2,1592.1,1.25651]
[1744884806638,1.26592763,1592.2,1592.1,1.25651]
[1744884807346,0.00940763,1592.2,1592.1,1.25651]
[1744884807939,0.00940763,1592.2,1592.0,1.6361]
[1744884808238,1.26592763,1592.2,1592.1,1.25655]
[1744884808439,1.25655,1592.1,1592.0,2.89267]
[1744884808846,2.98102763,1592.2,1592.1,1.25655]
[1744884809045,1.25655,1592.1,1592.0,2.89266]
[1744884809751,1.25655,1592.1,1592.0,2.89268]
[1744884811050,1.25655,1592.1,1592.0,2.89267]
[1744884812047,1.25655,1592.1,1592.0,1.6361]
[1744884812247,1.25655,1592.1,1592.0,2.89273]
[1744884812849,2.98104763,1592.2,1592.1,1.25655]
[1744884813045,1.26594763,1592.2,1592.1,1.25655]
[1744884813345,1.25655,1592.1,1592.0,2.89267]
[1744884814144,1.25655,1592.1,1591.6,3.2078]
[1744884814145,1.25685,1591.8,1591.6,3.2078]
[1744884814349,1.25685,1591.8,1591.7,1.25682]
[1744884814558,1.25687,1591.7,1591.6,2.09028]
[1744884814851,1.25683,1591.8,1591.7,1.2568]
[1744884815350,1.25687,1591.7,1591.6,2.89543]
[1744884815552,2.87677,1591.7,1591.6,2.89543]
[1744884816656,2.87677,1591.7,1591.5,0.00940763]
[1744884816657,1.25694,1591.6,1591.5,0.00940763]
[1744884816954,2.87684,1591.6,1591.5,1.26642763]
[1744884817556,1.25692,1591.7,1591.6,1.25694]
[1744884817753,8.83864,1591.8,1591.7,1.25687]
[1744884817948,7.36974,1591.8,1591.7,1.25687]
[1744884818466,1.25691,1591.7,1591.6,1.25687]
[1744884819972,10.28803272,1591.8,1591.7,1.25687]
[1744884820156,4.17513272,1591.8,1591.7,2.08207]
[1744884821369,5.43192272,1591.8,1591.7,2.08207]
[1744884821572,5.43192272,1591.8,1591.7,3.81037]
[1744884821772,5.43192272,1591.8,1591.7,2.5535]
[1744884821962,7.02052272,1591.8,1591.7,3.81037]
[1744884822564,4.17513272,1591.8,1591.7,3.81037]
[1744884822961,5.43192272,1591.8,1591.7,3.81037]
[1744884823167,4.17513272,1591.8,1591.7,3.81037]
[1744884823362,2.84531,1591.9,1591.8,1.25679]
[1744884824172,2.84531,1591.9,1591.8,2.95369]
[1744884824373,2.84531,1591.9,1591.8,1.6969]
[1744884824574,1.25679,1591.8,1591.7,2.08199]
[1744884824774,1.6149,1591.8,1591.7,2.08199]
[1744884825074,1.25677,1591.9,1591.8,1.25679]
[1744884825275,1.25677,1591.9,1591.8,2.95369]
[1744884826180,12.22232272,1592.0,1591.9,1.25671]
[1744884826377,11.42072272,1592.0,1591.9,2.92441]
[1744884826582,13.49935174,1592.0,1591.9,2.92441]
[1744884826778,7.51045174,1592.0,1591.9,2.92441]
[1744884827574,6.25376174,1592.0,1591.9,2.92441]
[1744884827878,8.370504,1592.1,1592.0,1.25663]
[1744884828074,7.039844,1592.1,1592.0,6.96073]
[1744884828271,4.832621,1592.1,1592.0,11.96073]
[1744884828472,4.832621,1592.1,1592.0,16.33573]
[1744884828678,1.513251,1592.1,1592.0,16.33573]
[1744884828879,1e-06,1592.1,1592.0,16.33573]
[1744884830779,7.20373066,1592.2,1592.1,1.25655]
[1744884830977,4.17089378,1592.5,1592.4,1.25631]
[1744884831686,4.17089378,1592.5,1592.4,2.10241]
[1744884832484,4.17089378,1592.5,1592.4,5.31021]
[1744884832684,0.91554378,1592.5,1592.4,16.16621]
[1744884832988,0.91554378,1592.5,1592.4,11.16621]
[1744884833178,0.91554378,1592.5,1592.4,12.76801]
[1744884835886,1.61410763,1592.6,1592.5,1.25623]
[1744884836087,1.61410763,1592.6,1592.5,2.95793]
[1744884839695,0.00940763,1592.6,1592.5,3.78213]
[1744884840387,2.98015763,1592.6,1592.5,2.5259]
[1744884840587,1.25623,1592.5,1592.4,2.10236]
[1744884840893,0.00940763,1592.6,1592.5,1.25623]
[1744884841093,0.00940763,1592.6,1592.5,3.78313]
[1744884843187,0.00940763,1592.6,1592.5,6.99093]
[1744884843486,0.00940763,1592.6,1592.5,1.25623]
[1744884843889,2.10555763,1592.6,1592.5,1.25623]
[1744884844089,7.94515763,1592.6,1592.5,1.25623]
[1744884844290,1.25631,1592.4,1592.3,1.26572763]
[1744884845993,6.25631,1592.4,1592.3,1.26572763]
[1744884846190,6.25631,1592.4,1592.3,0.00940763]
[1744884846500,10.55931,1592.4,1592.3,0.00940763]
[1744884846794,12.18761,1592.4,1592.3,0.00940763]
[1744884847797,12.18761,1592.4,1592.3,1.26579763]
[1744884848386,7.18761,1592.4,1592.3,1.26579763]
[1744884850799,7.18761,1592.4,1592.3,0.00940763]
[1744884852595,12.18761,1592.4,1592.3,0.00940763]
[1744884852995,7.18761,1592.4,1592.3,0.00940763]
[1744884855300,1.25669,1592.0,1591.9,1.25666]
[1744884855996,2.97819,1592.0,1591.9,1.25666]
[1744884857709,1.25671,1591.9,1591.8,1.26614763]
[1744884858004,2.94151,1591.9,1591.8,1.26614763]
[1744884859607,2.94151,1591.9,1591.8,0.00940763]
[1744884860399,1.25706,1591.6,1591.5,1.257]
[1744884860811,2.95656,1591.6,1591.5,1.257]
[1744884861013,2.95656,1591.6,1591.5,2.9833]
[1744884861609,1.25702,1591.5,1591.4,2.09736763]
[1744884861803,2.95652,1591.5,1591.4,0.84030763]
[1744884862004,2.95652,1591.5,1591.4,2.09740763]
[1744884862517,2.95652,1591.5,1591.4,0.00940763]
[1744884862814,7.26052,1591.5,1591.4,0.00940763]
[1744884863202,8.82202,1591.5,1591.4,7.63e-06]
[1744884863415,13.12602,1591.5,1591.4,7.63e-06]
[1744884863612,8.12602,1591.5,1591.4,7.63e-06]
[1744884864104,7.26052,1591.5,1591.4,1.25710763]
[1744884865006,7.26052,1591.5,1591.4,7.63e-06]
[1744884865320,12.26052,1591.5,1591.4,7.63e-06]
[1744884865512,18.25052,1591.5,1591.4,7.63e-06]
[1744884865815,13.94652,1591.5,1591.4,7.63e-06]
[1744884866001,18.22752,1591.5,1591.4,7.63e-06]
[1744884867508,1.25775,1590.7,1590.4,6.35247]
[1744884867707,5.53966,1590.8,1590.7,1.25766]
[1744884867914,1.25766,1590.7,1590.6,2.9621]
[1744884868109,1.25777,1590.6,1590.5,1.25777]
[1744884868311,22.3,1590.8,1590.7,1.25766]
[1744884868514,4.282,1591.0,1590.6,3.14425]
[1744884868717,1.26696763,1590.9,1590.8,1.25755]
[1744884869016,1.25758,1590.8,1590.7,2.96199]
[1744884869209,1.25758,1590.8,1590.7,1.7044]
[1744884869603,1.26694763,1590.9,1590.7,1.7044]
[1744884869808,1.26694763,1590.9,1590.8,1.25758]
[1744884870013,1.25758,1590.8,1590.7,2.96199]
[1744884870617,2.95754763,1590.9,1590.8,1.25758]
[1744884870913,1.26694763,1590.9,1590.8,2.84898]
[1744884871316,1.25721,1591.3,1591.0,3.14337]
[1744884871518,1.25721,1591.3,1591.2,1.25719]
[1744884871716,1.25726,1591.2,1591.1,3.2744]
[1744884871916,1.6906,1591.2,1590.9,1.25746]
[1744884872211,4.283,1591.1,1590.9,2.4268]
[1744884872417,1.25742,1591.0,1590.9,3.68429]
[1744884872819,1.25742,1591.0,1590.9,2.4268]
[1744884873717,6.08342,1591.0,1590.9,2.4268]
[1744884874012,1.2575,1590.9,1590.8,0.8676]
[1744884874213,1.2575,1590.9,1590.8,2.4909]
[1744884875619,1.2575,1590.9,1590.8,3.74848]
[1744884875913,1.2575,1590.9,1590.8,2.4909]
[1744884876114,1.25758,1590.8,1590.7,0.8642]
[1744884876305,1.25758,1590.8,1590.7,2.4854]
[1744884876306,5.54058,1590.8,1590.7,2.4854]
[1744884876706,8.74838,1590.8,1590.7,2.4854]
[1744884876902,5.54058,1590.8,1590.7,2.4854]
[1744884877107,1.25766,1590.7,1590.6,0.87060763]
[1744884877305,2.93026,1590.7,1590.6,0.87060763]
[1744884877509,7.21326,1590.7,1590.6,2.49180763]
[1744884877712,5.54066,1590.7,1590.6,2.49180763]
[1744884877912,1.25766,1590.7,1590.6,3.74953763]
[1744884878113,4.283,1590.7,1590.6,2.49180763]
[1744884878318,5.54163,1590.8,1590.7,1.25761]
[1744884878511,5.54163,1590.8,1590.7,2.87191]
[1744884878711,5.54163,1590.8,1590.7,1.6143]
[1744884879016,5.54163,1590.8,1590.7,2.87196]
[1744884879417,5.54163,1590.8,1590.7,1.6143]
[1744884880311,8.74943,1590.8,1590.7,1.6143]
[1744884880511,5.54163,1590.8,1590.7,2.87196]
[1744884880719,5.54163,1590.8,1590.7,1.6143]
[1744884883518,5.54163,1590.8,1590.7,2.87196]
[1744884885517,5.54163,1590.8,1590.7,1.6143]
[1744884886618,8.74943,1590.8,1590.7,1.6143]
[1744884886820,5.54163,1590.8,1590.7,1.6143]
[1744884887319,5.54163,1590.8,1590.7,2.87196]
[1744884887706,5.54163,1590.8,1590.7,1.6143]
[1744884888319,5.54163,1590.8,1590.7,2.87196]
[1744884889028,5.54163,1590.8,1590.7,1.6143]
[1744884889436,10.47283,1590.8,1590.7,1.6143]
[1744884890220,7.26503,1590.8,1590.7,1.6143]
[1744884890820,10.47283,1590.8,1590.7,1.6143]
[1744884891017,1.25766,1590.7,1590.6,2.12833763]
[1744884891315,1.25766,1590.7,1590.6,2.54950763]
[1744884891517,3.01216,1590.7,1590.6,2.54950763]
[1744884892925,1.25766,1590.7,1590.6,3.80723763]
[1744884893422,1.25766,1590.7,1590.6,2.54950763]
[1744884893921,2.85026,1590.7,1590.6,2.54950763]
[1744884894125,2.85026,1590.7,1590.6,0.00940763]
[1744884894427,3.66466,1590.7,1590.6,0.00940763]
[1744884894826,2.85026,1590.7,1590.6,0.00940763]
[1744884895027,7.13426,1590.7,1590.6,0.00940763]
[1744884895229,7.13426,1590.7,1590.6,0.84740763]
[1744884895730,7.13426,1590.7,1590.6,0.00940763]
[1744884898525,2.85026,1590.7,1590.6,0.00940763]
[1744884898730,7.18526,1590.7,1590.6,0.00940763]
[1744884898932,8.05736,1590.7,1590.6,0.00940763]
[1744884899226,3.14434,1590.6,1590.1,0.02595]
[1744884899423,1.25803,1590.3,1590.1,1.70835]
[1744884899625,1.25803,1590.3,1590.2,1.25798]
[1744884900124,1.25795,1590.4,1590.3,1.2579]
[1744884900330,1.26735763,1590.4,1590.3,1.2579]
[1744884900529,1.26735763,1590.4,1590.3,2.919]
[1744884900725,0.00940763,1590.4,1590.3,7.919]
[1744884901532,1.26729763,1590.4,1590.3,1.6611]
[1744884901730,1.26729763,1590.4,1590.3,2.91907]
[1744884902935,0.00940763,1590.4,1590.3,7.91907]
[1744884903833,1.25764,1590.8,1590.7,1.25759]
[1744884904227,1.25778,1590.6,1590.5,1.25773]
[1744884904630,1.25781,1590.5,1590.4,2.91582]
[1744884907441,1.25781,1590.5,1590.4,1.658]
[1744884907628,1.7331,1590.5,1590.2,3.2078]
[1744884907829,1.25797,1590.3,1590.2,5.34595]
[1744884908432,4.87784,1590.5,1590.2,4.0879]
[1744884908636,11.59222763,1590.6,1590.5,1.25781]
[1744884909529,11.59222763,1590.6,1590.5,2.09981]
[1744884910337,11.59222763,1590.6,1590.5,0.842]
[1744884910538,1.25781,1590.5,1590.4,0.7999]
[1744884910736,2.98121,1590.5,1590.4,0.7999]
[1744884911839,0.00940763,1590.6,1590.5,1.25781]
[1744884912031,1.25781,1590.5,1590.4,2.05774]
[1744884912233,0.00940763,1590.6,1590.5,1.25781]
[1744884912734,0.00940763,1590.6,1590.4,2.05773]
[1744884912935,1.25781,1590.5,1590.4,0.7999]
[1744884913429,2.96491,1590.5,1590.4,0.7999]
[1744884913630,2.96491,1590.5,1590.4,2.05779]
[1744884913932,10.29941777,1590.8,1590.4,2.05779]
[1744884913933,6.21661777,1590.8,1590.7,1.25766]
[1744884914131,3.2078,1591.3,1591.0,1.25742]
[1744884914132,13.82613814,1591.1,1591.0,1.25742]
[1744884914332,12.56879814,1591.1,1591.0,1.25742]
[1744884914945,1.25742,1591.0,1590.9,2.06123]
[1744884915630,2.96382,1591.0,1590.9,2.06123]
[1744884916936,1.7064,1591.0,1590.9,2.06123]
[1744884917540,2.96382,1591.0,1590.9,2.06123]
[1744884919241,1.25773,1590.7,1590.4,6.35248]
[1744884919434,1.25773,1590.7,1590.6,2.08161]
[1744884919640,1.25773,1590.7,1590.6,0.8239]
[1744884919840,1.25773,1590.7,1590.6,2.08163]
[1744884920041,1.25773,1590.6,1590.5,2.13706]
[1744884920238,1.25773,1590.6,1590.5,2.96096]
[1744884921239,6.43144,1590.8,1590.7,1.25766]
[1744884922945,12.70493456,1590.8,1590.7,1.25766]
[1744884923338,11.86613456,1590.8,1590.7,1.25766]
[1744884923736,7.53107456,1590.8,1590.7,1.25766]
[1744884923941,6.27349456,1590.8,1590.7,1.25766]
[1744884924242,7.53107456,1590.8,1590.7,1.25766]
[1744884924947,6.27349456,1590.8,1590.7,1.25766]
[1744884925647,7.53107456,1590.8,1590.7,1.25766]
[1744884926250,6.27349456,1590.8,1590.7,1.25766]
[1744884926842,6.27349456,1590.8,1590.7,4.46546]
[1744884927249,6.27349456,1590.8,1590.7,9.46546]
[1744884927949,8.36465942,1590.9,1590.7,9.46546]
[1744884928143,7.53092456,1591.0,1590.9,1.2575]
[1744884928547,7.53092456,1591.0,1590.9,3.0184]
[1744884928741,9.17092456,1591.0,1590.9,3.0184]
[1744884929753,6.27349456,1591.0,1590.9,3.0184]
[1744884930549,7.53091456,1591.0,1590.9,3.0184]
[1744884930957,6.27349456,1591.0,1590.9,3.0184]
[1744884932156,3.70331,1591.1,1591.0,1.25742]
[1744884932356,3.70331,1591.1,1591.0,2.87262]
[1744884933152,1.25773,1590.7,1590.6,1.25768]
[1744884933455,1.25764,1590.8,1590.7,1.25758]
[1744884933858,2.86904,1590.8,1590.7,2.84828]
[1744884934450,1.25764,1590.8,1590.7,2.84828]
[1744884936768,1.25747,1591.0,1590.9,1.25742]
[1744884937263,8.38570456,1591.1,1591.0,1.25742]
[1744884937765,10.11080456,1591.1,1591.0,2.90732]
[1744884938065,6.27349456,1591.1,1591.0,7.90732]
[1744884940166,0.00940763,1591.2,1591.1,1.25734]
[1744884940365,0.00940763,1591.2,1591.1,6.05504]
[1744884940558,0.00940763,1591.2,1591.1,11.05504]
[1744884941163,7.63e-06,1591.2,1591.1,11.05504]
[1744884941565,7.63e-06,1591.2,1591.1,15.47104]
[1744884950872,7.63e-06,1591.2,1591.1,10.47104]
[1744884957377,7.63e-06,1591.2,1591.1,4.46514]
[1744884957577,7.63e-06,1591.2,1591.1,5.60934]
[1744884957877,1.64500763,1591.2,1591.1,4.46514]
[1744884958070,2.49260763,1591.2,1591.1,4.46514]
[1744884959778,2.49260763,1591.2,1591.1,6.10514]
[1744884961069,2.49260763,1591.2,1591.1,4.46514]
[1744884961773,8.74986763,1591.2,1591.1,4.46514]
[1744884962279,7.49260763,1591.2,1591.1,4.46514]
[1744884963078,8.74986763,1591.2,1591.1,4.46514]
[1744884963773,7.49260763,1591.2,1591.1,4.46514]
[1744884963974,2.49260763,1591.2,1591.1,4.46514]
[1744884964174,7.63e-06,1591.2,1591.1,10.55184]
[1744884970284,7.63e-06,1591.2,1591.1,6.19984]
[1744884970491,7.63e-06,1591.2,1591.1,8.81714]
[1744884970978,7.63e-06,1591.2,1591.1,11.40224]
[1744884971392,7.63e-06,1591.2,1591.1,10.57664]
[1744884971588,7.63e-06,1591.2,1591.1,6.22464]
[1744884971890,7.63e-06,1591.2,1591.1,10.57664]
[1744884972282,1.66840763,1591.2,1591.1,10.57664]
[1744884972890,1.66840763,1591.2,1591.1,8.81714]
[1744884973587,1.66840763,1591.2,1591.1,4.46514]
[1744884973789,1.25734,1591.1,1591.0,1.26676763]
[1744884974286,7.99584,1591.1,1591.0,0.00940763]
[1744884974993,7.99584,1591.1,1591.0,1.26682763]
[1744884975994,7.99584,1591.1,1591.0,0.00940763]
[1744884977893,7.99584,1591.1,1591.0,1.26682763]
[1744884979095,7.99584,1591.1,1591.0,0.00940763]
[1744884979596,4.16433949,1591.2,1591.1,1.25734]
[1744884979795,4.16433949,1591.2,1591.1,5.33884]
[1744884980092,4.16433949,1591.2,1591.1,7.03974]
[1744884980298,4.16433949,1591.2,1591.1,11.39274]
[1744884982299,7.63e-06,1591.2,1591.1,11.39274]
[1744884988007,7.63e-06,1591.2,1591.1,16.39274]
[1744884989314,7.63e-06,1591.2,1591.1,11.39274]
[1744884989912,7.63e-06,1591.2,1591.1,16.39274]
[1744884994014,7.63e-06,1591.2,1591.1,11.39274]
[1744884994216,7.63e-06,1591.2,1591.1,16.39274]
[1744884994511,4.16433186,1591.8,1591.7,1.25687]
[1744884994720,4.16433186,1591.8,1591.7,8.78867]
[1744884994916,4.16433186,1591.8,1591.7,12.13137]
[1744884995217,4.16433186,1591.9,1591.8,1.25679]
[1744884995519,5.89343949,1591.9,1591.8,2.96769]
[1744884995812,5.89343949,1591.9,1591.8,1.25679]
[1744884996011,10.89343949,1591.9,1591.8,1.25679]
[1744884997413,10.89343949,1591.9,1591.8,2.91819]
[1744884997914,5.89343949,1591.9,1591.8,2.91819]
[1744884998814,4.17373949,1591.9,1591.8,2.91819]
[1744885000014,0.00940763,1591.9,1591.8,2.91819]
[1744885003514,7.63e-06,1591.9,1591.8,2.91819]
[1744885007209,1.61970763,1591.9,1591.8,1.25679]
[1744885008616,7.63e-06,1591.9,1591.8,1.25679]
[1744885008920,7.63e-06,1591.9,1591.8,3.01729]
[1744885009115,7.63e-06,1591.9,1591.8,3.81959]
[1744885009316,1.58950763,1591.9,1591.8,1.25679]
[1744885011120,1.58950763,1591.9,1591.8,2.92449]
[1744885013823,1.58950763,1591.9,1591.8,1.25679]
[1744885016725,1.58950763,1591.9,1591.8,3.00209]
[1744885017326,7.63e-06,1591.9,1591.8,3.00209]
[1744885018126,1.59890763,1591.9,1591.8,3.00209]
[1744885020829,7.63e-06,1591.9,1591.8,3.00209]
[1744885022229,7.63e-06,1591.9,1591.8,8.00209]
[1744885022729,4.16433186,1592.5,1592.4,1.25631]
[1744885022927,7.95136186,1592.5,1592.4,1.25631]
[1744885023124,6.69513186,1592.5,1592.4,1.25631]
[1744885023319,7.95136186,1592.5,1592.4,1.25631]
[1744885023521,6.69513186,1592.5,1592.4,1.25631]
[1744885023723,12.95136186,1592.5,1592.3,4.46412]
[1744885023920,2.99291,1592.4,1592.3,4.47352763]
[1744885024331,7.99291,1592.4,1592.3,0.00940763]
[1744885024532,6.7366,1592.4,1592.3,1.26579763]
[1744885024724,7.99291,1592.4,1592.3,0.00940763]
[1744885024918,7.99291,1592.4,1592.3,1.26579763]
[1744885025719,1.7366,1592.4,1592.3,1.26579763]
[1744885025921,4.16433186,1592.5,1592.4,1.25631]
[1744885026130,2.85414186,1592.5,1592.4,6.09231]
[1744885026327,1.10457186,1592.5,1592.4,11.09231]
[1744885026533,7.54682651,1592.9,1592.6,3.14025]
[1744885026732,6.09602651,1592.9,1592.8,4.4638]
[1744885027033,1.69197651,1592.9,1592.8,4.4638]
[1744885027231,12.56879814,1593.2,1593.1,1.25576]
[1744885027432,12.56879814,1593.2,1593.1,8.75756]
[1744885027636,12.56879814,1593.2,1593.1,13.75756]
[1744885027832,11.08103814,1593.2,1593.1,13.75756]
[1744885028529,11.08103814,1593.2,1593.1,8.75756]
[1744885029730,11.08103814,1593.2,1593.1,8.75656]
[1744885029932,12.82823814,1593.2,1593.1,8.75656]
[1744885030431,12.82823814,1593.2,1593.1,4.46356]
[1744885030733,12.82823814,1593.2,1593.1,3.2078]
[1744885031133,12.82823814,1593.2,1593.1,4.46356]
[1744885031329,17.82823814,1593.2,1593.1,3.2078]
[1744885031533,19.08391814,1593.2,1592.9,4.293]
[1744885031728,19.08391814,1593.2,1592.8,7.06296]
[1744885031729,2.4686,1593.1,1592.8,7.06296]
[1744885032033,1.5959,1593.0,1592.9,1.25592]
[1744885033729,1.25596,1592.9,1592.7,5.54805]
[1744885033930,2.4863,1592.8,1592.7,5.54805]
[1744885034328,2.4863,1592.8,1592.7,1.25605]
[1744885035329,2.4863,1592.8,1592.7,4.46385]
[1744885035633,8.75554,1593.2,1593.1,1.25576]
[1744885035825,4.292,1593.2,1593.0,1.25579]
[1744885036030,5.54774,1593.2,1593.0,1.25579]
[1744885036535,5.54774,1593.2,1593.1,1.25576]
[1744885036930,8.01594,1593.2,1593.1,1.25576]
[1744885037129,1.25579,1593.1,1593.0,1.25578]
[1744885037335,2.85739,1593.1,1593.0,1.25578]
[1744885040742,2.85739,1593.1,1593.0,3.00388]
[1744885040938,1.6016,1593.1,1593.0,3.00388]
[1744885041435,2.85736,1593.1,1593.0,1.7481]
[1744885041632,2.85736,1593.1,1593.0,3.00394]
[1744885043246,4.74119,1593.1,1592.8,5.54793]
[1744885043433,1.25592,1592.9,1592.8,5.54793]
[1744885043636,1.25592,1592.9,1592.8,7.15623]
[1744885045144,1.25591,1593.0,1592.9,1.25585]
[1744885045545,1.25592,1592.9,1592.8,7.15624]
[1744885045945,1.25592,1592.9,1592.8,5.9003]
[1744885046143,1.25592,1592.9,1592.8,2.8643]
[1744885046347,2.97342,1592.9,1592.8,2.8643]
[1744885046644,1.256,1592.8,1592.7,8.75584]
[1744885046943,1.7175,1592.8,1592.7,8.75584]
[1744885047143,2.08165,1592.9,1592.8,1.256]
[1744885047444,1.256,1592.8,1592.7,10.35113]
[1744885048746,1.25631,1592.4,1592.3,0.00940763]
[1744885049539,2.89391,1592.4,1592.3,0.00940763]
[1744885055850,1.25631,1592.4,1592.3,1.26579763]
[1744885056044,1.25631,1592.4,1592.3,2.07959763]
[1744885056245,1.25624,1592.6,1592.5,1.25619]
[1744885057153,1.25623,1592.5,1592.4,2.99827]
[1744885058358,1.25623,1592.5,1592.4,1.742]
[1744885058556,2.92973,1592.5,1592.4,1.742]
[1744885060157,2.92973,1592.5,1592.4,2.99831]
[1744885060355,1.25623,1592.5,1592.4,2.99831]
[1744885061463,1.25623,1592.5,1592.4,1.742]
[1744885061762,2.93293,1592.5,1592.4,1.742]
[1744885067267,2.93293,1592.5,1592.4,2.99831]
[1744885067661,1.25623,1592.5,1592.4,2.99831]
[1744885068562,1.25623,1592.5,1592.4,1.742]
[1744885068759,1.25623,1592.5,1592.4,2.99831]
[1744885068960,1.25623,1592.5,1592.4,1.742]
[1744885069668,1.25623,1592.5,1592.4,2.99831]
[1744885070364,1.25623,1592.5,1592.4,1.742]
[1744885070571,1.25631,1592.4,1592.3,0.82320763]
[1744885070964,2.86221,1592.4,1592.3,0.82320763]
[1744885071470,2.86221,1592.4,1592.3,2.49820763]
[1744885073173,2.86221,1592.4,1592.3,0.82320763]
[1744885073376,2.86221,1592.4,1592.3,0.00940763]
[1744885075766,3.141,1592.3,1591.9,1.25669]
[1744885075968,1.25663,1592.0,1591.9,0.7947]
[1744885076381,6.19253,1592.0,1591.9,0.7947]
[1744885076675,6.19253,1592.0,1591.9,2.4144]
[1744885077580,2.98473,1592.0,1591.9,2.4144]
[1744885077982,1.25663,1592.0,1591.9,3.67111]
[1744885078367,1.25663,1592.0,1591.9,2.4144]
[1744885078977,2.98473,1592.0,1591.9,2.4144]
[1744885081881,1.25671,1591.9,1591.8,0.00940763]
[1744885082081,12.99211,1591.9,1591.8,0.00940763]
[1744885082271,17.99211,1591.9,1591.8,0.00940763]
[1744885082472,12.99211,1591.9,1591.8,0.00940763]
[1744885082779,10.45451,1591.9,1591.8,0.00940763]
[1744885083468,10.45451,1591.9,1591.8,1.67360763]
[1744885083672,7.24671,1591.9,1591.8,1.67360763]
[1744885083872,8.89931,1591.9,1591.8,1.67360763]
[1744885084079,8.89931,1591.9,1591.8,0.00940763]
[1744885086472,8.89931,1591.9,1591.8,1.69330763]
[1744885088280,2.90931,1591.9,1591.8,1.69330763]
[1744885089282,2.90931,1591.9,1591.8,0.00940763]
[1744885090778,2.90931,1591.9,1591.8,1.64840763]
[1744885092989,1.25671,1591.9,1591.8,1.64840763]